fUSD/lending_fUSD_20260408
["ID","MTS","AMOUNT","RATE_DAILY","PERIOD"]
[420036234,1775627445088,-150.0,0.00011389,2]
[420036235,1775627445098,-150.0,0.00011396,2]
[420036236,1775627445108,-351.013683,0.00011421,2]
[420036237,1775627445118,-150.0,0.00011425,2]
[420036238,1775627445127,-150.0,0.00011425,2]
[420036239,1775627445136,-150.0,0.00011425,2]
[420036240,1775627445147,-150.0,0.00011425,2]
[420036241,1775627445156,-150.0,0.00011425,2]
[420036242,1775627445166,-257.21753866,0.00011425,2]
[420036243,1775627445176,-154.96470643,0.00011425,2]
[420036244,1775627445186,-235.51154759,0.00011425,2]
[420036245,1775627445195,-152.89757625,0.00011425,2]
[420036246,1775627445205,-150.0,0.00011425,2]
[420036247,1775627445214,-254.64348,0.00011425,2]
[420036248,1775627445224,-269.022301,0.00011425,2]
[420036249,1775627445233,-500.0,0.00011426,2]
[420036250,1775627445243,-500.0,0.00011426,2]
[420036251,1775627445253,-500.0,0.00011426,2]
[420036252,1775627445263,-500.0,0.00011426,2]
[420036253,1775627445272,-500.0,0.00011426,2]
[420036254,1775627445282,-500.0,0.00011426,2]
[420036255,1775627445291,-500.0,0.00011426,2]
[420036256,1775627445300,-595.10163207,0.00011426,2]
[420036257,1775627445310,-150.0,0.00011426,2]
[420036258,1775627445320,-150.0,0.00011426,2]
[420036259,1775627445329,-150.0,0.00011426,2]
[420036260,1775627445339,-150.0,0.00011426,2]
[420036261,1775627445349,-151.55394064,0.00011426,2]
[420036262,1775627445358,-182.15202066,0.00011426,2]
[420036263,1775627445369,-208.37237059,0.00011426,2]
[420036264,1775627445379,-500.0,0.00011426,2]
[420036265,1775627445389,-500.0,0.00011426,2]
[420036266,1775627445398,-500.0,0.00011426,2]
[420036267,1775627445408,-500.0,0.00011426,2]
[420036268,1775627445418,-500.0,0.00011426,2]
[420036269,1775627445428,-500.0,0.00011426,2]
[420036270,1775627445438,-500.0,0.00011426,2]
[420036271,1775627445447,-500.0,0.00011426,2]
[420036272,1775627445458,-500.0,0.00011426,2]
[420036273,1775627445467,-500.0,0.00011426,2]
[420036274,1775627445477,-341.376807,0.00011426,2]
[420036275,1775627445486,-500.0,0.00011426,2]
[420036276,1775627445496,-500.0,0.00011426,2]
[420036277,1775627445506,-399.40597196,0.00011426,2]
[420036278,1775627445516,-165.86332065,0.00011426,2]
[420036279,1775627445527,-500.0,0.00011426,2]
[420036280,1775627445537,-500.0,0.00011426,2]
[420036281,1775627445547,-500.0,0.00011426,2]
[420036282,1775627445558,-500.0,0.00011426,2]
[420036283,1775627445569,-500.0,0.00011426,2]
[420036284,1775627445580,-500.0,0.00011426,2]
[420036285,1775627445590,-500.0,0.00011426,2]
[420036286,1775627445600,-339.81765262,0.00011426,2]
[420036287,1775627445610,-571.50758087,0.00011426,2]
[420036288,1775627445620,-160.5097946,0.00011426,2]
[420036289,1775627445630,-500.0,0.00011426,2]
[420036290,1775627445639,-500.0,0.00011426,2]
[420036291,1775627445649,-500.0,0.00011426,2]
[420036292,1775627445660,-151.26762084,0.00011426,2]
[420036293,1775627445670,-388.39476597,0.00011426,2]
[420036294,1775627445681,-150.36042852,0.00011426,2]
[420036295,1775627445691,-150.88467267,0.00011426,2]
[420036296,1775627445701,-342.0,0.00011432,2]
[420036297,1775627445712,-202.0,0.00011455,2]
[420036298,1775627445721,-1192.84989,0.00011509,2]
[420036299,1775627445731,-2390.316174,0.00011509,2]
[420036300,1775627445741,-2349.926041,0.00011509,2]
[420036301,1775627445751,-305.0,0.00011523,2]
[420036302,1775627445760,-166.66,0.00011526,2]
[420036303,1775627445770,-500.0,0.00011534,2]
[420036304,1775627445780,-649.62,0.00011534,2]
[420036305,1775627445790,-11199.96690183,0.00011541,2]
[420036306,1775627445800,-285.0,0.00011546,2]
[420036307,1775627445810,-213.0,0.00011569,2]
[420036308,1775627445819,-365.0,0.00011592,2]
[420036309,1775627445829,-223.0,0.00011615,2]
[420036310,1775627445839,-497.0,0.00011638,2]
[420036311,1775627445849,-255.0,0.0001164,2]
[420036312,1775627445859,-420.0,0.00011665,2]
[420036313,1775627445869,-785.0,0.00011665,2]
[420036314,1775627445879,-420.0,0.00011665,2]
[420036315,1775627445890,-300.0,0.00011665,2]
[420036316,1775627445899,-1680.0,0.00011672,2]
[420036317,1775627445909,-600.0,0.00011673,2]
[420036318,1775627445919,-600.0,0.00011673,2]
[420036319,1775627445930,-600.0,0.00011673,2]
[420036320,1775627445939,-600.0,0.00011673,2]
[420036321,1775627445949,-195.0,0.00011673,2]
[420036322,1775627445959,-195.0,0.00011673,2]
[420036323,1775627445969,-195.0,0.00011673,2]
[420036324,1775627445978,-195.0,0.00011673,2]
[420036325,1775627445990,-195.0,0.00011673,2]
[420036326,1775627445999,-250.0,0.00011673,2]
[420036327,1775627446010,-600.0,0.00011673,2]
[420036331,1775627446337,-150.0,0.000117,2]
[420036332,1775627446347,-157.99,0.00011707,2]
[420036333,1775627446357,-5000.0,0.00011773,2]
[420036334,1775627446366,-5000.0,0.00011773,2]
[420036335,1775627446376,-193.0,0.00011773,2]
[420036336,1775627446385,-250.0,0.00011773,2]
[420036337,1775627446395,-300.0,0.00011773,2]
[420036338,1775627446404,-376.60353807,0.00011773,2]
[420036339,1775627446414,-200.0,0.00011802,2]
[420036340,1775627446424,-1289.58892491,0.00011802,2]
[420036341,1775627446434,-500.0,0.00011808,2]
[420036342,1775627446443,-649.62,0.00011808,2]
[420036343,1775627446453,-891.89335958,0.00011868,2]
[420036344,1775627446463,-1500.0,0.00011868,2]
[420036345,1775627446473,-1500.0,0.00011868,2]
[420036346,1775627446483,-1500.0,0.00011868,2]
[420036347,1775627446493,-1500.0,0.00011868,2]
[420036348,1775627446504,-1500.0,0.00011868,2]
[420036349,1775627446513,-1500.0,0.00011868,2]
[420036350,1775627446523,-209.52918559,0.00011868,2]
[420036351,1775627446533,-166.66,0.00011907,2]
[420036352,1775627446542,-204.0,0.00011947,2]
[420036353,1775627446552,-1355.0,0.00011971,2]
[420036354,1775627446562,-11199.96690183,0.00012055,2]
[420036355,1775627446571,-500.0,0.00012082,2]
[420036356,1775627446581,-649.62,0.00012082,2]
[420036357,1775627446591,-166.66,0.00012287,2]
[420036358,1775627446600,-201.60184993,0.0001235,2]
[420036359,1775627446610,-709.82439652,0.0001235,2]
[420036360,1775627446620,-503.45185304,0.00012356,2]
[420036361,1775627446630,-649.62,0.00012356,2]
[420036362,1775627446640,-1015.28558372,0.00012416,2]
[420036363,1775627446650,-1037.33935184,0.00012416,2]
[420036364,1775627446660,-2000.0,0.00012416,2]
[420036365,1775627446670,-2000.0,0.00012416,2]
[420036366,1775627446681,-2000.0,0.00012416,2]
[420036367,1775627446690,-2000.0,0.00012416,2]
[420036368,1775627446700,-2000.0,0.00012502,2]
[420036369,1775627446710,-11199.96690183,0.00012569,2]
[420036370,1775627446719,-620.281943,0.00012606,2]
[420036371,1775627446729,-828.64294,0.00012606,2]
[420036372,1775627446738,-1221.961541,0.00012606,2]
[420036373,1775627446748,-649.65530586,0.0001263,2]
[420036374,1775627446758,-166.66,0.00012668,2]
[420036375,1775627446767,-455.55,0.00012688,2]
[420036376,1775627446777,-433.0,0.00012765,2]
[420036377,1775627446786,-587.0,0.00012823,2]
[420036378,1775627446796,-587.0,0.00012823,2]
[420036379,1775627446806,-2351.0,0.00012839,2]
[420036380,1775627446817,-1501.79789242,0.00012964,2]
[420036381,1775627446827,-1002.00876238,0.00012964,2]
[420036382,1775627446836,-2500.0,0.00012964,2]
[420036383,1775627446846,-2500.0,0.00012964,2]
[420036384,1775627446856,-250.0,0.00013,2]
[420036385,1775627446865,-168.9896,0.00013,2]
[420036386,1775627446875,-5361.57423727,0.00013009,2]
[420036387,1775627446885,-166.66,0.00013048,2]
[420036388,1775627446895,-11199.96690183,0.00013084,2]
[420036389,1775627446904,-179.092875,0.00013095,2]
[420036390,1775627446914,-3240.0,0.00013425,2]
[420036391,1775627446923,-166.66,0.00013429,2]
[420036392,1775627446933,-9891.79784251,0.000135,7]
[420036393,1775627446943,-1003.75016468,0.00013512,2]
[420036394,1775627446953,-503.61823881,0.00013512,2]
[420036395,1775627446962,-11199.96690183,0.00013598,2]
[420036396,1775627446972,-576.75688538,0.00013673,2]
[420036397,1775627446982,-500.0,0.00013673,2]
[420036398,1775627446991,-501.50073946,0.00013698,2]
[420036399,1775627447001,-500.0,0.00013698,2]
[420036400,1775627447010,-500.0,0.00013698,2]
[420036402,1775627447019,-504.74596653,0.00013698,2]
[420036403,1775627447028,-500.0,0.00013698,2]
[420036405,1775627447037,-500.0,0.00013698,2]
[420036407,1775627447047,-500.0,0.00013698,2]
[420036409,1775627447056,-500.0,0.00013698,2]
[420036410,1775627447066,-500.0,0.00013698,2]
[420036411,1775627447075,-500.0,0.00013698,2]
[420036412,1775627447084,-500.0,0.00013698,2]
[420036413,1775627447094,-419.40847116,0.00013698,2]
[420036414,1775627447103,-500.0,0.00013698,2]
[420036415,1775627447113,-500.0,0.00013698,2]
[420036416,1775627447122,-500.45174561,0.00013698,2]
[420036417,1775627447132,-500.0,0.00013698,2]
[420036418,1775627447141,-500.0,0.00013698,2]
[420036419,1775627447150,-500.0,0.00013698,2]
[420036420,1775627447160,-500.0,0.00013698,2]
[420036421,1775627447169,-406.01852309,0.00013698,2]
[420036422,1775627447179,-500.0,0.00013698,2]
[420036423,1775627447189,-500.0,0.00013698,2]
[420036424,1775627447198,-500.0,0.00013698,2]
[420036425,1775627447208,-500.0,0.00013698,2]
[420036426,1775627447217,-500.0,0.00013698,2]
[420036427,1775627447227,-500.0,0.00013698,2]
[420036428,1775627447236,-500.0,0.00013698,2]
[420036429,1775627447246,-500.0,0.00013698,2]
[420036430,1775627447256,-500.0,0.00013698,2]
[420036431,1775627447265,-500.0,0.00013698,2]
[420036432,1775627447275,-490.0,0.00013698,2]
[420036433,1775627447285,-500.0,0.00013698,2]
[420036434,1775627447294,-500.0,0.00013698,2]
[420036435,1775627447303,-500.0,0.00013698,2]
[420036436,1775627447313,-500.0,0.00013698,2]
[420036437,1775627447322,-500.0,0.00013698,2]
[420036438,1775627447331,-500.0,0.00013698,2]
[420036439,1775627447340,-500.0,0.00013698,2]
[420036440,1775627447350,-500.0,0.00013698,2]
[420036441,1775627447359,-500.0,0.00013698,2]
[420036442,1775627447369,-500.0,0.00013698,2]
[420036443,1775627447378,-500.0,0.00013698,2]
[420036444,1775627447388,-500.0,0.00013698,2]
[420036445,1775627447398,-500.0,0.00013698,2]
[420036446,1775627447408,-500.0,0.00013698,2]
[420036447,1775627447418,-500.0,0.00013698,2]
[420036448,1775627447428,-500.0,0.00013698,2]
[420036449,1775627447438,-500.0,0.00013698,2]
[420036450,1775627447448,-500.0,0.00013698,2]
[420036451,1775627447458,-200.0,0.00013698,2]
[420036452,1775627447468,-500.0,0.00013698,2]
[420036453,1775627447477,-500.0,0.00013698,2]
[420036454,1775627447487,-500.0,0.00013698,2]
[420036455,1775627447496,-500.0,0.00013698,2]
[420036456,1775627447506,-500.0,0.00013698,2]
[420036457,1775627447516,-500.0,0.00013698,2]
[420036458,1775627447525,-500.0,0.00013698,2]
[420036459,1775627447535,-500.0,0.00013698,2]
[420036460,1775627447545,-562.38643831,0.00013698,2]
[420036461,1775627447554,-500.0,0.00013698,2]
[420036462,1775627447563,-500.0,0.00013698,2]
[420036463,1775627447573,-500.0,0.00013698,2]
[420036464,1775627447582,-500.0,0.00013698,2]
[420036465,1775627447592,-500.0,0.00013698,2]
[420036466,1775627447601,-500.0,0.00013698,2]
[420036467,1775627447611,-500.0,0.00013698,2]
[420036468,1775627447620,-500.0,0.00013698,2]
[420036469,1775627447630,-500.0,0.00013698,2]
[420036470,1775627447640,-500.0,0.00013698,2]
[420036471,1775627447649,-500.0,0.00013698,2]
[420036472,1775627447659,-500.0,0.00013698,2]
[420036473,1775627447669,-500.0,0.00013698,2]
[420036474,1775627447678,-500.0,0.00013698,2]
[420036475,1775627447687,-500.0,0.00013698,2]
[420036476,1775627447697,-500.0,0.00013698,2]
[420036477,1775627447707,-500.0,0.00013698,2]
[420036478,1775627447717,-500.0,0.00013698,2]
[420036479,1775627447727,-500.0,0.00013698,2]
[420036480,1775627447736,-500.0,0.00013698,2]
[420036481,1775627447746,-500.0,0.00013698,2]
[420036482,1775627447755,-500.0,0.00013698,2]
[420036483,1775627447765,-215.39830433,0.00013698,2]
[420036484,1775627447775,-500.0,0.00013698,2]
[420036485,1775627447785,-500.0,0.00013698,2]
[420036486,1775627447795,-542.71692042,0.00013698,2]
[420036487,1775627447805,-553.39225555,0.00013698,2]
[420036488,1775627447815,-658.1,0.00013698,2]
[420036489,1775627447825,-658.1,0.00013698,2]
[420036490,1775627447835,-658.1,0.00013698,2]
[420036491,1775627447845,-658.1,0.00013698,2]
[420036492,1775627447855,-658.1,0.00013698,2]
[420036493,1775627447865,-658.1,0.00013698,2]
[420036494,1775627447875,-658.1,0.00013698,2]
[420036495,1775627447885,-658.1,0.00013698,2]
[420036496,1775627447896,-658.1,0.00013698,2]
[420036497,1775627447906,-658.1,0.00013698,2]
[420036498,1775627447916,-658.1,0.00013698,2]
[420036499,1775627447926,-658.1,0.00013698,2]
[420036500,1775627447936,-658.1,0.00013698,2]
[420036501,1775627447946,-658.1,0.00013698,2]
[420036502,1775627447956,-658.1,0.00013698,2]
[420036503,1775627447966,-658.1,0.00013698,2]
[420036504,1775627447975,-658.1,0.00013698,2]
[420036505,1775627447985,-658.1,0.00013698,2]
[420036506,1775627447995,-658.1,0.00013698,2]
[420036507,1775627448004,-658.1,0.00013698,2]
[420036508,1775627448014,-658.1,0.00013698,2]
[420036509,1775627448024,-658.1,0.00013698,2]
[420036510,1775627448033,-658.1,0.00013698,2]
[420036511,1775627448043,-658.2028036,0.00013698,2]
[420036512,1775627448052,-500.0,0.00013698,2]
[420036513,1775627448062,-633.831471,0.00013698,2]
[420036514,1775627448071,-500.0,0.00013698,2]
[420036515,1775627448081,-500.0,0.00013698,2]
[420036516,1775627448092,-500.0,0.00013698,2]
[420036517,1775627448101,-500.0,0.00013698,2]
[420036518,1775627448111,-500.0,0.00013698,2]
[420036519,1775627448120,-500.0,0.00013698,2]
[420036520,1775627448130,-500.0,0.00013698,2]
[420036521,1775627448139,-500.0,0.00013698,2]
[420036522,1775627448148,-500.0,0.00013698,2]
[420036523,1775627448157,-500.0,0.00013698,2]
[420036524,1775627448167,-198.06604293,0.00013698,2]
[420036525,1775627448176,-500.03954585,0.00013698,2]
[420036526,1775627448186,-500.0,0.00013698,2]
[420036527,1775627448196,-500.0,0.00013698,2]
[420036528,1775627448206,-500.0,0.00013698,2]
[420036529,1775627448215,-500.0,0.00013698,2]
[420036530,1775627448225,-500.0,0.00013698,2]
[420036531,1775627448235,-500.0,0.00013698,2]
[420036532,1775627448244,-500.0,0.00013698,2]
[420036533,1775627448255,-467.66178343,0.00013698,2]
[420036534,1775627448264,-500.0,0.00013698,2]
[420036535,1775627448274,-500.0,0.00013698,2]
[420036536,1775627448283,-500.0,0.00013698,2]
[420036537,1775627448293,-500.0,0.00013698,2]
[420036538,1775627448302,-500.0,0.00013698,2]
[420036539,1775627448311,-500.0,0.00013698,2]
[420036540,1775627448321,-500.0,0.00013698,2]
[420036541,1775627448330,-500.0,0.00013698,2]
[420036542,1775627448340,-500.0,0.00013698,2]
[420036543,1775627448350,-500.0,0.00013698,2]
[420036544,1775627448360,-500.0,0.00013698,2]
[420036545,1775627448370,-500.0,0.00013698,2]
[420036546,1775627448380,-500.0,0.00013698,2]
[420036547,1775627448390,-500.13,0.00013698,2]
[420036548,1775627448401,-500.0,0.00013698,2]
[420036549,1775627448411,-500.0,0.00013698,2]
[420036550,1775627448420,-500.0,0.00013698,2]
[420036551,1775627448430,-500.0,0.00013698,2]
[420036552,1775627448440,-500.0,0.00013698,2]
[420036553,1775627448449,-500.0,0.00013698,2]
[420036554,1775627448459,-500.0,0.00013698,2]
[420036555,1775627448469,-500.0,0.00013698,2]
[420036556,1775627448478,-500.0,0.00013698,2]
[420036557,1775627448488,-248.76967055,0.00013698,2]
[420036558,1775627448498,-500.0,0.00013698,2]
[420036559,1775627448508,-500.0,0.00013698,2]
[420036560,1775627448518,-500.0,0.00013698,2]
[420036561,1775627448528,-629.72113567,0.00013698,2]
[420036562,1775627448538,-500.0,0.00013698,2]
[420036563,1775627448548,-500.0,0.00013698,2]
[420036564,1775627448558,-500.0,0.00013698,2]
[420036565,1775627448569,-500.0,0.00013698,2]
[420036566,1775627448579,-500.0,0.00013698,2]
[420036567,1775627448588,-500.0,0.00013698,2]
[420036568,1775627448598,-500.0,0.00013698,2]
[420036569,1775627448607,-500.0,0.00013698,2]
[420036570,1775627448617,-500.0,0.00013698,2]
[420036571,1775627448627,-500.0,0.00013698,2]
[420036572,1775627448637,-500.0,0.00013698,2]
[420036573,1775627448647,-500.0,0.00013698,2]
[420036574,1775627448657,-500.0,0.00013698,2]
[420036575,1775627448667,-500.0,0.00013698,2]
[420036576,1775627448677,-500.0,0.00013698,2]
[420036577,1775627448687,-500.0,0.00013698,2]
[420036578,1775627448696,-500.0,0.00013698,2]
[420036579,1775627448707,-500.0,0.00013698,2]
[420036580,1775627448717,-500.0,0.00013698,2]
[420036581,1775627448727,-500.0,0.00013698,2]
[420036582,1775627448738,-500.0,0.00013698,2]
[420036583,1775627448748,-500.14075642,0.00013698,2]
[420036584,1775627448758,-500.0,0.00013698,2]
[420036585,1775627448767,-500.0,0.00013698,2]
[420036586,1775627448777,-500.0,0.00013698,2]
[420036587,1775627448787,-500.0,0.00013698,2]
[420036588,1775627448796,-500.0,0.00013698,2]
[420036589,1775627448806,-500.0,0.00013698,2]
[420036590,1775627448816,-500.0,0.00013698,2]
[420036591,1775627448826,-500.0,0.00013698,2]
[420036592,1775627448835,-500.0,0.00013698,2]
[420036593,1775627448845,-500.0,0.00013698,2]
[420036594,1775627448855,-500.0,0.00013698,2]
[420036595,1775627448865,-500.0,0.00013698,2]
[420036596,1775627448874,-500.0,0.00013698,2]
[420036597,1775627448884,-500.0,0.00013698,2]
[420036598,1775627448895,-595.48595604,0.00013698,2]
[420036599,1775627448905,-500.0,0.00013698,2]
[420036600,1775627448916,-500.0,0.00013698,2]
[420036601,1775627448926,-500.0,0.00013698,2]
[420036602,1775627448936,-500.0,0.00013698,2]
[420036603,1775627448946,-500.0,0.00013698,2]
[420036604,1775627448956,-500.0,0.00013698,2]
[420036605,1775627448966,-500.0,0.00013698,2]
[420036606,1775627448976,-500.0,0.00013698,2]
[420036607,1775627448986,-500.0,0.00013698,2]
[420036608,1775627448996,-500.0,0.00013698,2]
[420036609,1775627449007,-500.0,0.00013698,2]
[420036610,1775627449018,-500.0,0.00013698,2]
[420036611,1775627449028,-500.0,0.00013698,2]
[420036612,1775627449037,-500.0,0.00013698,2]
[420036613,1775627449048,-500.0,0.00013698,2]
[420036614,1775627449058,-500.0,0.00013698,2]
[420036615,1775627449067,-500.0,0.00013698,2]
[420036616,1775627449077,-500.0,0.00013698,2]
[420036617,1775627449086,-500.0,0.00013698,2]
[420036618,1775627449096,-500.0,0.00013698,2]
[420036619,1775627449106,-499.6872898,0.00013698,2]
[420036620,1775627449116,-150.0,0.00013699,2]
[420036621,1775627449126,-150.0,0.00013699,2]
[420036622,1775627449136,-2138.0,0.00013699,2]
[420036623,1775627449146,-150.0,0.00013699,2]
[420036624,1775627449156,-2132.78,0.00013699,2]
[420036625,1775627449165,-476.15,0.00013699,2]
[420036626,1775627449175,-396.8,0.00013699,2]
[420036627,1775627449186,-330.66,0.00013699,2]
[420036628,1775627449195,-2534.6,0.00013699,2]
[420036629,1775627449205,-275.55,0.00013699,2]
[420036630,1775627449215,-229.63,0.00013699,2]
[420036631,1775627449225,-191.36,0.00013699,2]
[420036632,1775627449235,-159.46,0.00013699,2]
[420036633,1775627449244,-797.34,0.00013699,2]
[420036634,1775627449254,-500.0,0.00013699,2]
[420036635,1775627449265,-500.0,0.00013699,2]
[420036636,1775627449275,-500.0,0.00013699,2]
[420036637,1775627449284,-500.0,0.00013699,2]
[420036638,1775627449294,-500.0,0.00013699,2]
[420036639,1775627449304,-500.0,0.00013699,2]
[420036640,1775627449314,-500.0,0.00013699,2]
[420036641,1775627449324,-500.0,0.00013699,2]
[420036642,1775627449333,-500.0,0.00013699,2]
[420036643,1775627449342,-500.0,0.00013699,2]
[420036644,1775627449352,-500.68321897,0.00013699,2]
[420036645,1775627449362,-500.60430488,0.00013699,2]
[420036646,1775627449371,-500.27274938,0.00013699,2]
[420036647,1775627449381,-500.0,0.00013699,2]
[420036648,1775627449391,-500.0,0.00013699,2]
[420036649,1775627449400,-500.0,0.00013699,2]
[420036650,1775627449410,-500.0,0.00013699,2]
[420036651,1775627449419,-474.64837932,0.00013699,2]
[420036652,1775627449431,-500.32940014,0.00013699,2]
[420036653,1775627449441,-500.0,0.00013699,2]
[420036654,1775627449451,-503.98766467,0.00013699,2]
[420036655,1775627449462,-500.0,0.00013699,2]
[420036656,1775627449472,-244.23047354,0.00013699,2]
[420036657,1775627449482,-288.28066678,0.00013699,2]
[420036658,1775627449492,-500.0,0.00013699,2]
[420036659,1775627449502,-290.88257095,0.00013699,2]
[420036660,1775627449512,-164.42313659,0.00013699,2]
[420036661,1775627449522,-500.0,0.00013699,2]
[420036662,1775627449532,-500.0,0.00013699,2]
[420036663,1775627449542,-163.86569709,0.00013699,2]
[420036664,1775627449552,-500.0,0.00013699,2]
[420036665,1775627449562,-500.0,0.00013699,2]
[420036666,1775627449572,-158.59138502,0.00013699,2]
[420036667,1775627449582,-1000.0,0.00013699,2]
[420036668,1775627449592,-1000.0,0.00013699,15]
[420036669,1775627449602,-964.0,0.00013699,2]
[420036670,1775627449611,-964.0,0.00013699,2]
[420036671,1775627449621,-964.0,0.00013699,2]
[420036672,1775627449633,-964.0,0.00013699,2]
[420036673,1775627449643,-964.0,0.00013699,2]
[420036674,1775627449653,-964.0,0.00013699,2]
[420036675,1775627449663,-964.0,0.00013699,2]
[420036676,1775627449674,-964.0,0.00013699,2]
[420036677,1775627449684,-964.0,0.00013699,2]
[420036678,1775627449694,-964.0,0.00013699,2]
[420036679,1775627449704,-964.0,0.00013699,2]
[420036680,1775627449714,-964.0,0.00013699,2]
[420036681,1775627449724,-964.0,0.00013699,2]
[420036682,1775627449734,-964.0,0.00013699,2]
[420036683,1775627449743,-964.0,0.00013699,2]
[420036684,1775627449753,-964.0,0.00013699,2]
[420036685,1775627449764,-964.0,0.00013699,2]
[420036686,1775627449774,-964.0,0.00013699,2]
[420036687,1775627449785,-964.0,0.00013699,2]
[420036688,1775627449796,-964.0,0.00013699,2]
[420036689,1775627449806,-964.0,0.00013699,2]
[420036690,1775627449816,-964.0,0.00013699,2]
[420036691,1775627449826,-964.0,0.00013699,2]
[420036692,1775627449836,-985.24465103,0.00013699,2]
[420036693,1775627449847,-79364.77,0.000137,2]
[420036694,1775627449857,-2512.258962,0.00013813,2]
[420036695,1775627449867,-2000.0,0.00013891,2]
[420036696,1775627449877,-150.0,0.00013973,2]
[420036697,1775627449887,-150.0,0.00013973,2]
[420036698,1775627449898,-150.0,0.00013973,2]
[420036699,1775627449908,-4733.74989347,0.0001399,2]
[420036700,1775627449918,-736.0,0.00014006,2]
[420036701,1775627449928,-29562.81978733,0.00014046,2]
[420036702,1775627449938,-823.0,0.00014097,2]
[420036703,1775627449948,-823.0,0.00014097,2]
[420036704,1775627449959,-11199.96690183,0.00014112,2]
[420036705,1775627449970,-3292.0,0.00014123,2]
[420036706,1775627449980,-455.55,0.00014158,2]
[420036707,1775627449991,-501.73893264,0.00014221,2]
[420036708,1775627450001,-150.0,0.00014247,2]
[420036709,1775627450011,-1000.0,0.00014247,2]
[420036710,1775627450021,-763.74027783,0.00014247,2]
[420036711,1775627450031,-1000.0,0.00014247,2]
[420036712,1775627450041,-242.46089406,0.00014247,2]
[420036713,1775627450051,-1000.0,0.00014247,2]
[420036714,1775627450061,-1000.0,0.00014247,2]
[420036715,1775627450071,-1000.0,0.00014247,2]
[420036716,1775627450080,-1144.24089955,0.00014247,2]
[420036717,1775627450090,-1000.0,0.00014247,2]
[420036718,1775627450100,-1000.0,0.00014247,2]
[420036719,1775627450110,-313.804645,0.0001425,7]
[420036720,1775627450120,-222.665312,0.0001425,7]
[420036721,1775627450129,-446.192352,0.0001425,2]
[420036722,1775627450140,-438.652861,0.0001425,7]
[420036723,1775627450150,-190.3833,0.000143,2]
[420036724,1775627450160,-2534.6,0.00014384,2]
[420036725,1775627450170,-150.0,0.00014461,2]
[420036726,1775627450180,-150.0,0.00014462,2]
[420036727,1775627450189,-150.0,0.0001458,2]
[420036728,1775627450199,-2000.0,0.000146,2]
[420036729,1775627450210,-29562.81978733,0.00014618,2]
[420036730,1775627450220,-11199.96690183,0.00014626,2]
[420036731,1775627450230,-1500.0,0.00014795,2]
[420036732,1775627450243,-1500.0,0.00014795,2]
[420036733,1775627450255,-1500.0,0.00014795,2]
[420036734,1775627450265,-1500.0,0.00014795,2]
[420036735,1775627450277,-1500.0,0.00014795,2]
[420036736,1775627450288,-250.0,0.00014795,2]
[420036737,1775627450299,-1515.29028124,0.00014795,2]
[420036738,1775627450309,-1500.0,0.00014795,2]
[420036739,1775627450319,-300.0,0.00015,2]
[420036740,1775627450331,-1573.0,0.00015058,2]